fUST/lending_fUST_20250811
["ID","MTS","AMOUNT","RATE_DAILY","PERIOD"]
[378391544,1754841806815,166.17544428,0.00019859,2]
[378391549,1754841821411,191.387716,0.00019178,2]
[378391569,1754841949380,1581.68684032,0.00018958,2]
[378391570,1754841949408,23318.31315968,0.00018958,2]
[378391572,1754841987391,5000.0,0.00019952,2]
[378391574,1754842049099,-240.0,0.00019955,2]
[378391575,1754842049124,-300.0,0.00019955,2]
[378391576,1754842049147,-460.0,0.00019956,2]
[378391577,1754842049171,-460.0,0.00019956,2]
[378391578,1754842049197,-460.0,0.00019956,2]
[378391579,1754842049227,-460.0,0.00019956,2]
[378391580,1754842049250,-460.0,0.00019956,2]
[378391581,1754842049272,-460.0,0.00019956,2]
[378391582,1754842049296,-460.0,0.00019956,2]
[378391583,1754842049321,-460.0,0.00019956,2]
[378391584,1754842049346,-2280.12226088,0.00019957,2]
[378391585,1754842051459,169.748389,0.0001911,2]
[378391586,1754842052028,200.0,0.00030088,120]
[378391594,1754842175604,949.0,0.00019952,2]
[378391600,1754842202166,208.82013438,0.000189,2]
[378391602,1754842213520,162.48748592,0.0001986,2]
[378391680,1754842232635,-180.0,0.00019956,2]
[378391681,1754842232645,-300.0,0.00019956,2]
[378391684,1754842232655,-72.3362467,0.00019957,2]
[378391686,1754842232666,-49927.6637533,0.00019957,2]
[378391688,1754842232676,-564.88,0.00019957,2]
[378391690,1754842232686,-832.02,0.00019957,2]
[378391692,1754842232696,-460.0,0.00019957,2]
[378391693,1754842232705,-460.0,0.00019957,2]
[378391695,1754842232715,-828.44,0.00019957,2]
[378391697,1754842232725,-460.0,0.00019957,2]
[378391699,1754842232735,-216.50971763,0.00019957,2]
[378391700,1754842232744,-285.07135312,0.00019957,2]
[378391702,1754842232759,-500.06691087,0.00019957,2]
[378391704,1754842232768,-460.0,0.00019958,2]
[378391706,1754842232778,-460.0,0.00019958,2]
[378391708,1754842232788,-461.29878547,0.00019958,2]
[378391710,1754842232798,-460.0,0.00019958,2]
[378391712,1754842232808,-461.88001973,0.00019958,2]
[378391714,1754842232819,-227.23214898,0.00019958,2]
[378391716,1754842232828,-460.0,0.00019958,2]
[378391718,1754842232839,-460.0,0.00019958,2]
[378391720,1754842232849,-460.0,0.00019958,2]
[378391722,1754842232859,-460.0,0.00019958,2]
[378391724,1754842232868,-460.0,0.00019958,2]
[378391726,1754842232878,-466.19376159,0.00019958,2]
[378391728,1754842232888,-460.0,0.00019958,2]
[378391730,1754842232898,-461.77145001,0.00019958,2]
[378391732,1754842232907,-460.0,0.00019958,2]
[378391734,1754842232917,-460.0,0.00019958,2]
[378391736,1754842232926,-460.0,0.00019958,2]
[378391738,1754842232936,-460.0,0.00019958,2]
[378391740,1754842232945,-460.0,0.00019958,2]
[378391742,1754842232955,-460.0,0.00019958,2]
[378391744,1754842232964,-460.0,0.00019958,2]
[378391746,1754842232973,-464.01261431,0.00019958,2]
[378391747,1754842232983,-460.0,0.00019958,2]
[378391749,1754842232992,-460.0,0.00019958,2]
[378391751,1754842233008,-460.0,0.00019958,2]
[378391754,1754842233018,-460.0,0.00019958,2]
[378391755,1754842233027,-460.0,0.00019959,2]
[378391758,1754842233042,-462.18938033,0.00019959,2]
[378391760,1754842233052,-460.0,0.00019959,2]
[378391762,1754842233062,-460.0,0.00019959,2]
[378391764,1754842233071,-464.9109232,0.00019959,2]
[378391766,1754842233081,-460.0,0.00019959,2]
[378391768,1754842233092,-460.0,0.00019959,2]
[378391770,1754842233102,-363.50603091,0.00019959,2]
[378391772,1754842233112,-460.0,0.00019959,2]
[378391774,1754842233123,-460.0,0.00019959,2]
[378391776,1754842233132,-460.0,0.00019959,2]
[378391778,1754842233142,-460.0,0.00019959,2]
[378391780,1754842233151,-477.21,0.00019959,2]
[378391782,1754842233161,-460.0,0.00019959,2]
[378391784,1754842233171,-464.00773258,0.00019959,2]
[378391786,1754842233180,-469.918015,0.00019959,2]
[378391788,1754842233190,-460.0,0.00019959,2]
[378391790,1754842233200,-513.91,0.00019959,2]
[378391791,1754842233209,-179.38,0.00019959,2]
[378391793,1754842233219,-460.0,0.00019959,2]
[378391795,1754842233228,-460.0,0.00019959,2]
[378391797,1754842233238,-500.0,0.00019959,2]
[378391799,1754842233251,-500.0,0.00019959,2]
[378391801,1754842233260,-460.0,0.00019959,2]
[378391802,1754842233270,-536.39,0.00019959,2]
[378391804,1754842233279,-460.0,0.00019959,2]
[378391806,1754842233289,-460.0,0.00019959,2]
[378391807,1754842233300,-460.0,0.00019959,2]
[378391808,1754842233310,-316.35285608,0.0001996,2]
[378391809,1754842233320,-460.0,0.0001996,2]
[378391810,1754842233330,-460.0,0.0001996,2]
[378391811,1754842233339,-973.25885417,0.0001996,2]
[378391812,1754842233349,-460.0,0.0001996,2]
[378391813,1754842233359,-460.0,0.0001996,2]
[378391814,1754842233368,-583.02,0.00019961,2]
[378391815,1754842233378,-500.0,0.00020058,2]
[378391816,1754842233388,-235.979523,0.00020187,2]
[378391817,1754842233397,-294.9,0.0002023,2]
[378391818,1754842233407,-233.62589241,0.0002023,2]
[378391819,1754842233418,-564.88,0.00020231,2]
[378391820,1754842233427,-832.02,0.00020231,2]
[378391821,1754842233437,-460.0,0.00020231,2]
[378391822,1754842233447,-828.44,0.00020231,2]
[378391823,1754842233457,-482.99,0.00020231,2]
[378391824,1754842233466,-460.0,0.00020232,2]
[378391825,1754842233476,-460.0,0.00020232,2]
[378391826,1754842233486,-477.21,0.00020233,2]
[378391827,1754842233495,-513.91,0.00020233,2]
[378391828,1754842233508,-460.0,0.00020233,2]
[378391829,1754842233517,-460.0,0.00020233,2]
[378391830,1754842233527,-460.0,0.00020233,2]
[378391831,1754842233537,-536.39,0.00020233,2]
[378391832,1754842233547,-460.0,0.00020233,2]
[378391833,1754842233557,-460.0,0.00020234,2]
[378391834,1754842233567,-460.0,0.00020234,2]
[378391835,1754842233576,-583.02,0.00020235,2]
[378391836,1754842233585,-564.88,0.00020505,2]
[378391837,1754842233595,-832.02,0.00020505,2]
[378391838,1754842233605,-460.0,0.00020505,2]
[378391839,1754842233614,-828.44,0.00020505,2]
[378391840,1754842233624,-477.21,0.00020507,2]
[378391841,1754842233634,-513.91,0.00020507,2]
[378391842,1754842233644,-460.0,0.00020507,2]
[378391843,1754842233653,-460.0,0.00020507,2]
[378391844,1754842233663,-460.0,0.00020507,2]
[378391845,1754842233672,-536.39,0.00020507,2]
[378391846,1754842233682,-460.0,0.00020507,2]
[378391847,1754842233691,-460.0,0.00020508,2]
[378391848,1754842233701,-460.0,0.00020508,2]
[378391849,1754842233711,-583.02,0.00020509,2]
[378391850,1754842233721,-564.88,0.00020779,2]
[378391851,1754842233730,-832.02,0.00020779,2]
[378391852,1754842233740,-460.0,0.00020779,2]
[378391853,1754842233750,-828.44,0.00020779,2]
[378391854,1754842233760,-477.21,0.00020781,2]
[378391855,1754842233770,-513.91,0.00020781,2]
[378391856,1754842233779,-460.0,0.00020781,2]
[378391857,1754842233789,-460.0,0.00020781,2]
[378391858,1754842233799,-460.0,0.00020781,2]
[378391859,1754842233809,-536.39,0.00020781,2]
[378391860,1754842233819,-345.28,0.00020781,2]
[378391861,1754842233828,-460.0,0.00020782,2]
[378391862,1754842233839,-460.0,0.00020782,2]
[378391863,1754842233848,-583.02,0.00020783,2]
[378391864,1754842233858,-200.0,0.00020954,15]
[378391865,1754842233867,-300.0,0.00020954,15]
[378391866,1754842233877,-564.88,0.00021053,2]
[378391867,1754842233887,-832.02,0.00021053,2]
[378391868,1754842233896,-460.0,0.00021053,2]
[378391869,1754842233906,-828.44,0.00021053,2]
[378391870,1754842233916,-477.21,0.00021055,2]
[378391871,1754842233925,-513.91,0.00021055,2]
[378391872,1754842233935,-460.0,0.00021055,2]
[378391873,1754842233944,-460.0,0.00021055,2]
[378391874,1754842233954,-460.0,0.00021055,2]
[378391875,1754842233963,-536.39,0.00021055,2]
[378391876,1754842233973,-460.0,0.00021056,2]
[378391877,1754842233983,-460.0,0.00021056,2]
[378391878,1754842233992,-583.02,0.00021057,2]
[378391879,1754842234005,-843.0869304,0.00021281,2]
[378391880,1754842234014,-231.96268195,0.00021281,2]
[378391881,1754842234023,-215.44987349,0.00021281,2]
[378391882,1754842234032,-461.62346162,0.00021281,2]
[378391883,1754842234047,-12668.57659669,0.00021281,2]
[378391884,1754842234056,-160.0,0.00021281,2]
[378391885,1754842234065,-216.64838636,0.00021281,2]
[378391886,1754842234074,-160.0,0.00021281,2]
[378391887,1754842234084,-160.0,0.00021281,2]
[378391888,1754842234093,-527.86640923,0.00021281,2]
[378391889,1754842234102,-160.0,0.00021282,2]
[378391890,1754842234112,-564.88,0.00021327,2]
[378391891,1754842234123,-832.02,0.00021327,2]
[378391892,1754842234133,-460.0,0.00021327,2]
[378391893,1754842234143,-828.44,0.00021327,2]
[378391894,1754842234152,-477.21,0.00021329,2]
[378391895,1754842234162,-513.91,0.00021329,2]
[378391896,1754842234171,-460.0,0.00021329,2]
[378391897,1754842234181,-460.0,0.00021329,2]
[378391898,1754842234190,-460.0,0.00021329,2]
[378391899,1754842234200,-536.39,0.00021329,2]
[378391900,1754842234210,-460.0,0.0002133,2]
[378391901,1754842234221,-460.0,0.0002133,2]
[378391902,1754842234230,-583.02,0.00021331,2]
[378391903,1754842234239,-300.0,0.0002136,2]
[378391904,1754842234251,-151.0,0.0002136,2]
[378391905,1754842234261,-151.0,0.0002136,2]
[378391906,1754842234270,-155.50084956,0.0002136,2]
[378391907,1754842234280,-151.0,0.0002136,2]
[378391908,1754842234290,-500.0,0.0002136,2]
[378391909,1754842234299,-151.0,0.0002136,2]
[378391910,1754842234309,-18502.69577858,0.0002136,2]
[378391911,1754842234319,-151.0,0.0002136,2]
[378391912,1754842234328,-151.0,0.0002136,2]
[378391913,1754842234338,-151.0,0.0002136,2]
[378391914,1754842234347,-250.0,0.0002136,2]
[378391915,1754842234357,-151.0,0.0002136,2]
[378391916,1754842234367,-151.41275615,0.0002136,2]
[378391917,1754842234377,-250.0,0.0002136,2]
[378391918,1754842234386,-151.0,0.0002136,2]
[378391919,1754842234396,-250.0,0.0002136,2]
[378391920,1754842234405,-2183.31810187,0.0002136,2]
[378391921,1754842234415,-151.0,0.0002136,2]
[378391922,1754842234424,-250.0,0.0002136,2]
[378391923,1754842234434,-151.0,0.0002136,2]
[378391924,1754842234443,-250.0,0.0002136,2]
[378391925,1754842234452,-151.0,0.0002136,2]
[378391926,1754842234461,-151.0,0.0002136,2]
[378391927,1754842234586,-151.0,0.0002136,2]
[378391928,1754842234596,-151.0,0.0002136,2]
[378391929,1754842234606,-151.0,0.0002136,2]
[378391930,1754842234615,-151.0,0.0002136,2]
[378391931,1754842234625,-151.0,0.0002136,2]
[378391932,1754842234634,-151.0,0.0002136,2]
[378391933,1754842234644,-151.0,0.0002136,2]
[378391934,1754842234653,-2940.81573158,0.0002137,2]
[378391935,1754842234663,-482.66,0.00021405,10]
[378391936,1754842234673,-2264.10087164,0.00021415,2]
[378391937,1754842234682,-328.66559356,0.00021431,2]
[378391938,1754842234691,-783.14940119,0.00021431,2]
[378391939,1754842234701,-783.14940119,0.00021431,2]
[378391940,1754842234710,-817.60797484,0.00021431,2]
[378391941,1754842234720,-817.60797484,0.00021431,2]
[378391942,1754842234730,-817.60797484,0.00021431,2]
[378391943,1754842234739,-817.60797484,0.00021431,2]
[378391944,1754842234750,-817.60797484,0.00021431,2]
[378391945,1754842234760,-895.59660271,0.00021431,2]
[378391946,1754842234769,-895.59660271,0.00021431,2]
[378391947,1754842234780,-895.59660271,0.00021431,2]
[378391948,1754842234789,-895.59660271,0.00021431,2]
[378391949,1754842234799,-895.59660271,0.00021431,2]
[378391950,1754842234808,-895.59660271,0.00021431,2]
[378391951,1754842234818,-895.59660271,0.00021431,2]
[378391952,1754842234827,-895.59660271,0.00021431,2]
[378391953,1754842234837,-780.79357177,0.00021431,2]
[378391954,1754842234846,-731.99397354,0.00021431,2]
[378391955,1754842234856,-731.99397354,0.00021431,2]
[378391956,1754842234865,-731.99397354,0.00021431,2]
[378391957,1754842234874,-731.99397354,0.00021431,2]
[378391958,1754842234884,-731.99397354,0.00021431,2]
[378391959,1754842234893,-1088.00922428,0.00021431,2]
[378391960,1754842234903,-159723.28930333,0.00021432,2]
[378391961,1754842234917,-500.59501,0.00021432,2]
[378391980,1754842238872,-460.0,0.00020506,2]
[378391982,1754842238882,-460.0,0.0002078,2]
[378391984,1754842238891,-460.0,0.00021054,2]
[378391988,1754842238901,-460.0,0.00021328,2]
[378391990,1754842238910,-735.87804301,0.0002136,2]
[378391992,1754842238920,-209776.11568667,0.00021432,2]
[378391994,1754842238930,-2347.87260389,0.0002147,2]
[378391996,1754842238939,-500.0,0.00021473,2]
[378391997,1754842238949,-500.0,0.00021473,2]
[378391998,1754842238958,-254.49316604,0.00021473,2]
[378391999,1754842238968,-500.45646262,0.00021473,2]
[378392000,1754842238977,-561.06729624,0.00021473,2]
[378392001,1754842238987,-303.38675974,0.00021473,2]
[378392002,1754842238996,-500.0,0.000215,2]
[378392003,1754842239006,-564.88,0.00021601,2]
[378392004,1754842239015,-832.02,0.00021601,2]
[378392005,1754842239025,-460.0,0.00021601,2]
[378392006,1754842239036,-828.44,0.00021601,2]
[378392007,1754842239050,-460.0,0.00021602,2]
[378392008,1754842239060,-477.21,0.00021603,2]
[378392009,1754842239070,-513.91,0.00021603,2]
[378392010,1754842239081,-460.0,0.00021603,2]
[378392011,1754842239092,-460.0,0.00021603,2]
[378392012,1754842239102,-460.0,0.00021603,2]
[378392013,1754842239112,-536.39,0.00021603,2]
[378392014,1754842239124,-460.0,0.00021604,2]
[378392015,1754842239134,-460.0,0.00021604,2]
[378392016,1754842239145,-583.02,0.00021605,2]
[378392017,1754842239155,-162.48748587,0.00021781,2]
[378392018,1754842239165,-564.88,0.00021875,2]
[378392019,1754842239174,-832.02,0.00021875,2]
[378392020,1754842239184,-460.0,0.00021875,2]
[378392021,1754842239193,-828.44,0.00021875,2]
[378392022,1754842239202,-460.0,0.00021876,2]
[378392023,1754842239213,-477.21,0.00021877,2]
[378392024,1754842239222,-513.91,0.00021877,2]
[378392025,1754842239231,-460.0,0.00021877,2]
[378392026,1754842239240,-460.0,0.00021877,2]
[378392027,1754842239250,-460.0,0.00021877,2]
[378392028,1754842239260,-536.39,0.00021877,2]
[378392029,1754842239269,-460.0,0.00021878,2]
[378392030,1754842239279,-460.0,0.00021878,2]
[378392031,1754842239289,-583.02,0.00021879,2]
[378392032,1754842239299,-500.0,0.00021917,2]
[378392033,1754842239308,-500.0,0.00021917,2]
[378392034,1754842239317,-500.0,0.00021917,2]
[378392035,1754842239326,-500.0,0.00021917,2]
[378392036,1754842239335,-500.0,0.00021917,2]
[378392037,1754842239345,-500.0,0.00021917,2]
[378392038,1754842239354,-500.0,0.00021917,2]
[378392039,1754842239363,-593.16402743,0.00021917,2]
[378392040,1754842239372,-6149.05,0.00021917,2]
[378392041,1754842239381,-1281.9,0.00021972,2]
[378392042,1754842239391,-460.0,0.00021972,2]
[378392043,1754842239400,-460.0,0.00021972,2]
[378392044,1754842239410,-500.0,0.00021973,2]
[378392045,1754842239419,-500.0,0.00021973,2]
[378392046,1754842239428,-500.0,0.00021973,2]
[378392047,1754842239437,-150.0,0.00021973,2]
[378392048,1754842239447,-501.14487397,0.00021973,2]
[378392049,1754842239456,-535.54312747,0.00021973,2]
[378392050,1754842239465,-17597.88,0.00022,7]
[378392051,1754842239475,-67582.58,0.00022,7]
[378392052,1754842239484,-9667.05,0.00022,7]
[378392053,1754842239494,-43690.35,0.00022,2]
[378392054,1754842239503,-185.0,0.00022,2]
[378392055,1754842239513,-461.62346162,0.00022,7]
[378392056,1754842239522,-12668.57659669,0.00022,7]
[378392057,1754842239531,-229.83,0.00022,2]
[378392058,1754842239541,-2167.0,0.00022,2]
[378392059,1754842239550,-527.86640923,0.00022,7]
[378392060,1754842239560,-167.0,0.00022,2]
[378392061,1754842239570,-1000.0,0.00022021,2]
[378392062,1754842239579,-455.8040511,0.00022021,2]
[378392063,1754842239589,-160.0,0.00022142,2]
[378392064,1754842239598,-564.88,0.00022149,2]
[378392065,1754842239608,-832.02,0.00022149,2]
[378392066,1754842239617,-460.0,0.00022149,2]
[378392067,1754842239627,-828.44,0.00022149,2]
[378392068,1754842239637,-460.0,0.0002215,2]
[378392069,1754842239647,-477.21,0.00022151,2]
[378392070,1754842239656,-513.91,0.00022151,2]
[378392071,1754842239666,-460.0,0.00022151,2]
[378392072,1754842239676,-460.0,0.00022151,2]
[378392073,1754842239685,-460.0,0.00022151,2]
[378392074,1754842239695,-536.39,0.00022151,2]
[378392075,1754842239704,-460.0,0.00022152,2]
[378392076,1754842239713,-460.0,0.00022152,2]
[378392077,1754842239723,-583.02,0.00022153,2]
[378392078,1754842239732,-167.0,0.00022192,7]
[378392079,1754842239742,-1281.9,0.00022246,2]
[378392080,1754842239752,-460.0,0.00022246,2]
[378392081,1754842239761,-460.0,0.00022246,2]
[378392082,1754842239770,-564.88,0.00022423,2]
[378392083,1754842239780,-832.02,0.00022423,2]
[378392084,1754842239790,-460.0,0.00022423,2]
[378392085,1754842239799,-828.44,0.00022423,2]
[378392086,1754842239808,-151.0,0.00022424,7]
[378392087,1754842239818,-151.0,0.00022424,7]
[378392088,1754842239827,-151.0,0.00022424,7]
[378392089,1754842239837,-151.0,0.00022424,7]
[378392091,1754842239847,-460.0,0.00022424,2]
[378392093,1754842239856,-477.21,0.00022425,2]
[378392095,1754842239866,-513.91,0.00022425,2]
[378392097,1754842239875,-460.0,0.00022425,2]
[378392099,1754842239884,-460.0,0.00022425,2]
[378392101,1754842239894,-460.0,0.00022425,2]
[378392103,1754842239903,-536.39,0.00022425,2]
[378392105,1754842239912,-151.0,0.00022426,7]
[378392107,1754842239921,-460.0,0.00022426,2]
[378392109,1754842239931,-460.0,0.00022426,2]
[378392111,1754842239940,-583.02,0.00022427,2]
[378392113,1754842239950,-250.0,0.000225,2]
[378392114,1754842239959,-1281.9,0.0002252,2]
[378392115,1754842239968,-460.0,0.0002252,2]
[378392116,1754842239977,-460.0,0.0002252,2]
[378392117,1754842239987,-500.0,0.00022521,2]
[378392118,1754842239996,-1000.0,0.00022521,2]
[378392120,1754842240010,-250.0,0.00022521,2]
[378392123,1754842240025,-2940.81573158,0.00022585,2]
[378392125,1754842240035,-260.0,0.0002269,2]
[378392127,1754842240049,-564.88,0.00022697,2]
[378392130,1754842240058,-832.02,0.00022697,2]
[378392133,1754842240068,-460.0,0.00022697,2]
[378392136,1754842240077,-828.44,0.00022697,2]
[378392139,1754842240088,-460.0,0.00022698,2]
[378392142,1754842240097,-477.21,0.00022699,2]
[378392144,1754842240106,-513.91,0.00022699,2]
[378392146,1754842240117,-460.0,0.00022699,2]
[378392148,1754842240126,-460.0,0.00022699,2]
[378392150,1754842240136,-460.0,0.00022699,2]
[378392152,1754842240146,-536.39,0.00022699,2]
[378392154,1754842240155,-460.0,0.000227,2]
[378392156,1754842240164,-460.0,0.000227,2]
[378392157,1754842240173,-583.02,0.00022701,2]
[378392160,1754842240184,-151.0,0.00022729,2]
[378392161,1754842240193,-4973.29308551,0.00022729,2]
[378392163,1754842240202,-1000.0,0.0002278,2]
[378392165,1754842240212,-1281.9,0.00022794,2]
[378392167,1754842240221,-460.0,0.00022794,2]
[378392169,1754842240231,-460.0,0.00022794,2]
[378392171,1754842240240,-564.88,0.00022971,2]
[378392173,1754842240250,-832.02,0.00022971,2]
[378392175,1754842240260,-271.56774883,0.00022971,2]
[378392178,1754842240270,-828.44,0.00022971,2]
[378392179,1754842240280,-460.0,0.00022972,2]
[378392181,1754842240289,-477.21,0.00022973,2]
[378392183,1754842240299,-513.91,0.00022973,2]
[378392185,1754842240308,-516.68528636,0.00022973,2]
[378392187,1754842240318,-460.0,0.00022973,2]
[378392189,1754842240327,-460.0,0.00022973,2]
[378392191,1754842240337,-536.39,0.00022973,2]
[378392193,1754842240347,-460.0,0.00022974,2]
[378392195,1754842240356,-460.0,0.00022974,2]
[378392197,1754842240366,-583.02,0.00022975,2]
[378392199,1754842240375,-1000.000001,0.0002299,2]
[378392201,1754842240385,-160.0,0.00023,2]
[378392203,1754842240394,-200.0,0.00023002,15]
[378392205,1754842240405,-200.0,0.00023002,15]
[378392207,1754842240414,-300.0,0.00023002,15]
[378392209,1754842240424,-167.0,0.00023014,7]
[378392211,1754842240433,-1281.9,0.00023068,2]
[378392213,1754842240443,-460.0,0.00023068,2]
[378392215,1754842240452,-460.0,0.00023068,2]
[378392217,1754842240462,-1500.0,0.00023068,2]
[378392219,1754842240471,-350.0,0.00023068,2]
[378392221,1754842240481,-1000.0,0.00023173,2]
[378392223,1754842240491,-184.37172481,0.00023183,2]
[378392226,1754842240502,-2167.0,0.00023185,2]
[378392228,1754842240512,-256.77,0.000232,3]
[378392230,1754842240522,-360.0,0.00023238,2]
[378392232,1754842240532,-564.88,0.00023245,2]
[378392234,1754842240542,-832.02,0.00023245,2]
[378392236,1754842240552,-828.44,0.00023245,2]
[378392238,1754842240562,-477.21,0.00023247,2]
[378392240,1754842240572,-513.91,0.00023247,2]
[378392242,1754842240582,-460.0,0.00023247,2]
[378392244,1754842240591,-460.0,0.00023247,2]
[378392246,1754842240601,-536.39,0.00023247,2]
[378392248,1754842240611,-460.0,0.00023248,2]
[378392250,1754842240621,-460.0,0.00023248,2]
[378392251,1754842240631,-583.02,0.00023249,2]
[378392252,1754842240641,-151.0,0.000233,7]
[378392253,1754842240650,-151.0,0.000233,7]
[378392255,1754842240660,-151.0,0.000233,7]
[378392268,1754842240775,-1281.9,0.00023342,2]
[378392270,1754842240786,-460.0,0.00023342,2]
[378392272,1754842240796,-460.0,0.00023342,2]
[378392275,1754842240805,-1068.9,0.00023353,2]
[378392278,1754842240815,-500.0,0.00023373,2]
[378392281,1754842240824,-533.9224792,0.00023373,2]
[378392284,1754842240834,-500.0,0.00023373,2]
[378392286,1754842240844,-500.0,0.00023373,2]
[378392288,1754842240853,-500.0,0.00023373,2]
[378392290,1754842240862,-17597.88,0.000234,7]
[378392292,1754842240871,-67582.58,0.000234,7]
[378392294,1754842240881,-9667.05,0.000234,7]
[378392296,1754842240890,-43690.35,0.000234,2]
[378392298,1754842240900,-461.62346162,0.000234,7]
[378392300,1754842240909,-1062.0,0.00023505,2]
[378392302,1754842240918,-564.88,0.00023519,2]
[378392305,1754842240927,-832.02,0.00023519,2]
[378392308,1754842240936,-828.44,0.00023519,2]
[378392310,1754842240945,-477.21,0.00023521,2]
[378392312,1754842240963,-513.91,0.00023521,2]
[378392314,1754842240973,-460.0,0.00023521,2]
[378392316,1754842240982,-460.0,0.00023521,2]
[378392319,1754842240991,-536.39,0.00023521,2]
[378392321,1754842241000,-460.0,0.00023522,2]
[378392322,1754842241010,-460.0,0.00023522,2]
[378392324,1754842241020,-583.02,0.00023523,2]
[378392327,1754842241029,-1062.0,0.00023533,2]
[378392329,1754842241039,-151.0,0.000236,5]
[378392330,1754842241050,-151.0,0.000236,6]
[378392331,1754842241059,-151.0,0.000236,8]
[378392332,1754842241068,-1337.63,0.00023616,2]
[378392333,1754842241078,-1281.9,0.00023616,2]
[378392334,1754842241087,-460.0,0.00023616,2]
[378392335,1754842241097,-460.0,0.00023616,2]
[378392336,1754842241106,-508.65772578,0.00023616,2]
[378392337,1754842241115,-450.0,0.00023616,2]
[378392338,1754842241127,-1062.0,0.00023631,2]
[378392339,1754842241135,-162.48748587,0.00023702,2]
[378392340,1754842241145,-510.7577159,0.0002373,2]
[378392341,1754842241154,-2043.03086358,0.0002373,2]
[378392342,1754842241163,-4596.81944306,0.0002373,2]
[378392343,1754842241173,-623.00221258,0.0002373,2]
[378392344,1754842241182,-2492.00885031,0.0002373,2]
[378392345,1754842241191,-8172.12345432,0.0002378,2]
[378392346,1754842241200,-5601.41289328,0.0002378,2]
[378392347,1754842241210,-151.4297,0.00023781,2]
[378392348,1754842241219,-460.0,0.00023786,2]
[378392349,1754842241229,-564.88,0.00023793,2]
[378392350,1754842241238,-832.02,0.00023793,2]
[378392351,1754842241247,-828.44,0.00023793,2]
[378392352,1754842241257,-477.21,0.00023795,2]
[378392353,1754842241267,-513.91,0.00023795,2]
[378392354,1754842241277,-460.0,0.00023795,2]
[378392355,1754842241286,-460.0,0.00023795,2]
[378392356,1754842241296,-536.39,0.00023795,2]
[378392357,1754842241306,-460.0,0.00023796,2]
[378392358,1754842241316,-460.0,0.00023796,2]
[378392359,1754842241325,-583.02,0.00023797,2]
[378392360,1754842241335,-8413.17704259,0.000238,2]
[378392361,1754842241434,-500.0,0.000238,2]
[378392362,1754842241446,-1250.0000102,0.000238,2]
[378392363,1754842242086,-312.16666667,0.00021279,2]
[378392364,1754842242098,-490.58536201,0.000225,2]
[378392365,1754842242109,-2213.21815446,0.000238,2]
[378392366,1754842242122,-1057.16689972,0.000238,2]
[378392398,1754842248079,-460.0,0.00023246,2]
[378392399,1754842248091,-460.0,0.0002352,2]
[378392400,1754842248103,-460.0,0.00023794,2]
[378392401,1754842248116,-1883.64883186,0.000238,2]
[378392402,1754842248128,-327.056908,0.000238,2]
[378392403,1754842248139,-500.0,0.00023873,2]
[378392404,1754842248150,-500.0,0.00023873,2]
[378392405,1754842248162,-500.0,0.00023873,2]